[Event "XLII San Sebastian Open 2019"]
[Site "San Sebastian"]
[Date "2019.04.20"]
[Round "9.10"]
[White "Alfaro Garcia del Cerro, Juan L"]
[Black "Iturralde Echeverria, Ivan"]
[Result "0-1"]
[ECO "E06"]
[WhiteElo "2151"]
[BlackElo "1957"]
[Annotator "NA"]
[PlyCount "84"]
[EventDate "2019.04.13"]
[EventType "swiss"]
[EventCountry "ESP"]
[SourceTitle "playchess.com"]
[Source "ChessBase"]
[SourceQuality "1"]
[TimeControl "5400+30"]

1. d4 {[%emt 0:00:33]} Nf6 {[%emt 0:01:34]} 2. c4 {[%emt 0:00:23]} e6 {[%emt 0:00:07]} 3. g3 {[%emt 0:00:08]} d5 {[%emt 0:00:20]} 4. Nf3 {[%emt 0:00:04]} Be7 {[%emt 0:00:09]} 5. Bg2 {[%emt 0:00:06]} O-O {[%emt 0:00:07]} 6. O-O {[%emt 0:00:08]} dxc4 {[%emt 0:00:08]} 7. Qc2 {[%emt 0:00:04]} b5 {[%emt 0:00:07]} 8. a4 {[%emt 0:00:02]} b4 {[%emt 0:00:30]} 9. Nfd2 {[%emt 0:00:02]} c6 {[%emt 0:00:15]} 10. Nxc4 {[%emt 0:00:04]} Qxd4 {[%emt 0:00:27]} 11. b3 {[%emt 0:00:02]} Ba6 {[%emt 0:02:11]} 12. Bb2 {[%emt 0:01:19]} Qc5 {[%emt 0:03:34]} 13. Nbd2 {[%emt 0:00:22]} Nbd7 {[%emt 0:03:38]} 14. Rac1 {[%emt 0:01:29]} Rad8 {[%emt 0:16:27]} 15. e3 {[%emt 0:05:05]} Nb6 {[%emt 0:08:13]} 16. Rfe1 {[%emt 0:08:22]} Nxc4 {[%emt 0:01:34]} 17. Nxc4 {[%emt 0:00:06]} Bxc4 {[%emt 0:03:50]} 18. Bd4 {[%emt 0:07:38]} Qa5 {[%emt 0:08:46]} 19. Qxc4 {[%emt 0:00:08]} c5 {[%emt 0:00:49]} 20. Ba1 {[%emt 0:02:07]} Rd2 {[%emt 0:03:08]} 21. Bf3 {[%emt 0:01:53]} Rfd8 {[%emt 0:03:14]} 22. g4 {[%emt 0:02:18]} Nd5 {[%emt 0:07:37]} 23. Re2 {[%emt 0:04:15]} Nb6 {[%emt 0:04:31]} 24. Qf4 {[%emt 0:00:50]} R2d3 {[%emt 0:08:22]} 25. Be4 {[%emt 0:06:20]} Rxb3 {[%emt 0:10:48]} 26. Bc2 {[%emt 0:00:06]} Ra3 {[%emt 0:01:16]} 27. Qe4 {[%emt 0:00:42]} g6 {[%emt 0:00:33]} 28. Qe5 {[%emt 0:00:43]} Rxa1 {[%emt 0:00:35]} 29. Rxa1 {[%emt 0:00:51]} Qa6 {[%emt 0:00:40]} 30. Ree1 {[%emt 0:01:31]} c4 {[%emt 0:00:35]} 31. Qc7 {[%emt 0:01:08]} Nd5 {[%emt 0:01:07]} 32. Qg3 {[%emt 0:01:33]} b3 {[%emt 0:00:05]} 33. e4 {[%emt 0:06:31]} bxc2 {[%emt 0:01:24]} 34. exd5 {[%emt 0:00:42]} Rxd5 {[%emt 0:01:00]} 35. Rec1 {[%emt 0:02:16]} Bf6 {[%emt 0:01:27]} 36. Qf4 {[%emt 0:04:02]} Bxa1 {[%emt 0:00:26]} 37. Rxa1 {[%emt 0:00:09]} Rd1+ {[%emt 0:00:25]} 38. Kg2 {[%emt 0:00:11]} Qb7+ {[%emt 0:00:29]} 39. f3 {[%emt 0:01:47]} Rxa1 {[%emt 0:00:13]} 40. Qf6 {[%emt 0:00:01]} c1=Q {[%emt 0:00:52]} 41. Qd8+ {[%emt 0:00:16]} Kg7 {[%emt 0:00:11]} 42. Qd4+ {[%emt 0:00:01]} f6 {[%emt 0:00:09]} 0-1

[Event "XLII San Sebastian Open 2019"]
[Site "San Sebastian"]
[Date "2019.04.20"]
[Round "9.11"]
[White "Izagirre Alsua, Aritz"]
[Black "Cabanas Jimenez, Manuel"]
[Result "0-1"]
[ECO "B01"]
[WhiteElo "1917"]
[BlackElo "2119"]
[Annotator "NA"]
[PlyCount "98"]
[EventDate "2019.04.13"]
[EventType "swiss"]
[EventCountry "ESP"]
[SourceTitle "playchess.com"]
[Source "ChessBase"]
[SourceQuality "1"]
[TimeControl "5400+30"]

1. e4 {[%emt 0:00:15]} d5 {[%emt 0:07:38]} 2. exd5 {[%emt 0:00:24]} Nf6 {[%emt 0:00:02]} 3. d4 {[%emt 0:03:31]} Bg4 {[%emt 0:00:04]} 4. Nf3 {[%emt 0:04:45]} Qxd5 {[%emt 0:00:07]} 5. Nc3 {[%emt 0:07:10]} Qh5 {[%emt 0:01:21]} 6. h3 {[%emt 0:06:24]} Nc6 {[%emt 0:05:08]} 7. Bb5 {[%emt 0:01:35]} O-O-O {[%emt 0:04:57]} 8. Bxc6 {[%emt 0:03:24]} bxc6 {[%emt 0:01:43]} 9. O-O {[%emt 0:00:10]} Bxf3 {[%emt 0:00:06]} 10. Qxf3 {[%emt 0:00:47]} Qxf3 {[%emt 0:00:07]} 11. gxf3 {[%emt 0:00:07]} Rxd4 {[%emt 0:00:35]} 12. Be3 {[%emt 0:01:23]} Rc4 {[%emt 0:00:20]} 13. a3 {[%emt 0:08:06]} Nd5 {[%emt 0:05:21]} 14. Nxd5 {[%emt 0:02:17]} cxd5 {[%emt 0:01:51]} 15. c3 {[%emt 0:01:11]} a6 {[%emt 0:02:00]} 16. Rfd1 {[%emt 0:01:50]} e6 {[%emt 0:00:42]} 17. Bd4 {[%emt 0:02:57]} Be7 {[%emt 0:01:44]} 18. Kf1 {[%emt 0:04:31]} Bf6 {[%emt 0:02:58]} 19. Bxf6 {[%emt 0:01:11]} gxf6 {[%emt 0:00:02]} 20. Ke2 {[%emt 0:00:35]} Rh4 {[%emt 0:01:35]} 21. Rh1 {[%emt 0:01:16]} Rg8 {[%emt 0:00:28]} 22. Rag1 {[%emt 0:00:21]} Rg6 {[%emt 0:00:28]} 23. Rg4 {[%emt 0:00:19]} Rh5 {[%emt 0:03:33]} 24. h4 {[%emt 0:02:29]} c5 {[%emt 0:11:20]} 25. b4 {[%emt 0:06:06]} Re5+ {[%emt 0:08:11]} 26. Kd3 {[%emt 0:03:27]} Rxg4 {[%emt 0:04:05]} 27. fxg4 {[%emt 0:03:33]} Re4 {[%emt 0:01:36]} 28. Rg1 {[%emt 0:03:57]} Kd7 {[%emt 0:02:34]} 29. f3 {[%emt 0:04:23]} Rf4 {[%emt 0:00:12]} 30. Ke3 {[%emt 0:00:23]} Rc4 {[%emt 0:00:16]} 31. Kd3 {[%emt 0:01:54]} Kd6 {[%emt 0:03:08]} 32. h5 {[%emt 0:06:39]} Ke5 {[%emt 0:03:45]} 33. g5 {[%emt 0:03:24]} f5 {[%emt 0:08:29]} 34. g6 {[%emt 0:08:39]} fxg6 {[%emt 0:00:27]} 35. hxg6 {[%emt 0:00:08]} hxg6 {[%emt 0:00:03]} 36. Rxg6 {[%emt 0:00:21]} Rh4 {[%emt 0:02:05]} 37. Ke3 {[%emt 0:04:21]} f4+ {[%emt 0:01:52]} 38. Kd3 {[%emt 0:01:02]} c4+ {[%emt 0:00:34]} 39. Kd2 {[%emt 0:01:05]} Rh2+ {[%emt 0:00:26]} 40. Kd1 {[%emt 0:00:39]} Rf2 {[%emt 0:01:15]} 41. Rg5+ {[%emt 0:00:48]} Kd6 {[%emt 0:01:20]} 42. a4 {[%emt 0:00:51]} Rxf3 {[%emt 0:00:17]} 43. Kd2 {[%emt 0:00:16]} Rd3+ {[%emt 0:00:38]} 44. Kc2 {[%emt 0:00:58]} Rg3 {[%emt 0:00:05]} 45. Rh5 {[%emt 0:00:25]} Rg2+ {[%emt 0:00:06]} 46. Kd1 {[%emt 0:00:11]} Ra2 {[%emt 0:00:40]} 47. Kc1 {[%emt 0:00:46]} f3 {[%emt 0:00:15]} 48. Kb1 {[%emt 0:00:23]} f2 {[%emt 0:00:13]} 49. Rh1 {[%emt 0:00:43]} Re2 {[%emt 0:00:05]} 0-1

[Event "XLII San Sebastian Open 2019"]
[Site "San Sebastian"]
[Date "2019.04.20"]
[Round "9.12"]
[White "Arana Garate, Jon"]
[Black "Ladron De Guevara Galar, Fco J."]
[Result "0-1"]
[ECO "A45"]
[WhiteElo "1944"]
[BlackElo "2035"]
[Annotator "NA"]
[PlyCount "192"]
[EventDate "2019.04.13"]
[EventType "swiss"]
[EventCountry "ESP"]
[SourceTitle "playchess.com"]
[Source "ChessBase"]
[SourceQuality "1"]
[TimeControl "5400+30"]

1. d4 {[%emt 0:00:00]} Nf6 {[%emt 0:00:00]} 2. Bf4 {[%emt 0:00:00]} d5 {[%emt 0:01:13]} 3. e3 {[%emt 0:00:12]} c5 {[%emt 0:00:41]} 4. c3 {[%emt 0:03:49]} e6 {[%emt 0:00:56]} 5. Nd2 {[%emt 0:00:22]} Nc6 {[%emt 0:01:06]} 6. Bd3 {[%emt 0:00:12]} Bd6 {[%emt 0:00:40]} 7. Bg3 {[%emt 0:00:09]} O-O {[%emt 0:04:42]} 8. Ngf3 {[%emt 0:00:29]} b6 {[%emt 0:01:15]} 9. e4 {[%emt 0:02:08]} Be7 {[%emt 0:01:57]} 10. dxc5 {[%emt 0:02:49]} bxc5 {[%emt 0:06:00]} 11. Qe2 {[%emt 0:08:08]} a5 {[%emt 0:05:31]} 12. h3 {[%emt 0:06:15]} Qb6 {[%emt 0:05:12]} 13. Rb1 {[%emt 0:06:58]} Ba6 {[%emt 0:04:06]} 14. Bxa6 {[%emt 0:01:26]} Rxa6 {[%emt 0:00:51]} 15. exd5 {[%emt 0:01:44]} exd5 {[%emt 0:01:16]} 16. O-O {[%emt 0:00:26]} Re8 {[%emt 0:02:14]} 17. Rfe1 {[%emt 0:05:45]} Raa8 {[%emt 0:01:36]} 18. Qd3 {[%emt 0:00:43]} c4 {[%emt 0:06:05]} 19. Qc2 {[%emt 0:09:08]} a4 {[%emt 0:00:39]} 20. Re2 {[%emt 0:05:04]} Nh5 {[%emt 0:03:43]} 21. Bh2 {[%emt 0:13:00]} Bc5 {[%emt 0:05:19]} 22. Rbe1 {[%emt 0:00:08]} Rxe2 {[%emt 0:01:14]} 23. Rxe2 {[%emt 0:00:02]} g6 {[%emt 0:00:46]} 24. Ne5 {[%emt 0:05:50]} Nxe5 {[%emt 0:01:23]} 25. Bxe5 {[%emt 0:01:22]} Ng7 {[%emt 0:01:46]} 26. Nf3 {[%emt 0:01:01]} Ne6 {[%emt 0:02:46]} 27. Qd2 {[%emt 0:00:28]} Qb7 {[%emt 0:02:56]} 28. Bf6 {[%emt 0:01:23]} Bf8 {[%emt 0:03:03]} 29. Nd4 {[%emt 0:04:45]} Nc5 {[%emt 0:01:38]} 30. Nf5 {[%emt 0:01:15]} Qc6 {[%emt 0:06:30]} 31. Ne7+ {[%emt 0:08:04]} Bxe7 {[%emt 0:00:16]} 32. Bxe7 {[%emt 0:00:01]} Ne4 {[%emt 0:04:04]} 33. Qd4 {[%emt 0:03:17]} Re8 {[%emt 0:01:09]} 34. Bb4 {[%emt 0:01:17]} Re6 {[%emt 0:11:12]} 35. Qa7 {[%emt 0:00:50]} Nf6 {[%emt 0:02:31]} 36. Rxe6 {[%emt 0:02:59]} Qxe6 {[%emt 0:04:24]} 37. Qb8+ {[%emt 0:02:27]} Qe8 {[%emt 0:01:28]} 38. Qd6 {[%emt 0:00:50]} Kg7 {[%emt 0:00:52]} 39. Kf1 {[%emt 0:00:33]} g5 {[%emt 0:00:53]} 40. Bc5 {[%emt 0:00:16]} Qe6 {[%emt 0:00:42]} 41. Qf8+ {[%emt 0:01:59]} Kg6 {[%emt 0:00:02]} 42. Bd4 {[%emt 0:00:12]} Qf5 {[%emt 0:02:01]} 43. g4 {[%emt 0:01:03]} Qd3+ {[%emt 0:01:03]} 44. Kg2 {[%emt 0:00:23]} Qe4+ {[%emt 0:00:25]} 45. Kg1 {[%emt 0:00:26]} Qf3 {[%emt 0:00:58]} 46. Qd6 {[%emt 0:00:24]} Qf4 {[%emt 0:02:05]} 47. Qxf4 {[%emt 0:00:23]} gxf4 {[%emt 0:00:02]} 48. Be5 {[%emt 0:00:29]} Nd7 {[%emt 0:01:39]} 49. Bxf4 {[%emt 0:00:05]} Nc5 {[%emt 0:00:12]} 50. Kf1 {[%emt 0:01:34]} Nd3 {[%emt 0:00:33]} 51. Be3 {[%emt 0:00:10]} Nxb2 {[%emt 0:00:00]} 52. Ke2 {[%emt 0:00:51]} f5 {[%emt 0:00:04]} 53. f4 {[%emt 0:01:08]} Nd3 {[%emt 0:00:21]} 54. Bd2 {[%emt 0:00:38]} Nc5 {[%emt 0:00:50]} 55. Ke3 {[%emt 0:00:12]} Ne6 {[%emt 0:00:16]} 56. Ke2 {[%emt 0:00:58]} h5 {[%emt 0:01:10]} 57. g5 {[%emt 0:00:11]} Nc5 {[%emt 0:00:56]} 58. Ke3 {[%emt 0:00:01]} Ne6 {[%emt 0:00:21]} 59. Bc1 {[%emt 0:00:11]} Kf7 {[%emt 0:00:27]} 60. Ba3 {[%emt 0:00:16]} Kg6 {[%emt 0:01:01]} 61. Bd6 {[%emt 0:00:17]} Kf7 {[%emt 0:00:15]} 62. Kf3 {[%emt 0:01:19]} Kg6 {[%emt 0:00:45]} 63. Ke3 {[%emt 0:00:32]} Kf7 {[%emt 0:00:13]} 64. Kf3 {[%emt 0:00:17]} d4 {[%emt 0:00:43]} 65. cxd4 {[%emt 0:00:01]} Nxd4+ {[%emt 0:00:33]} 66. Ke3 {[%emt 0:00:01]} Nb5 {[%emt 0:00:21]} 67. Be5 {[%emt 0:00:38]} h4 {[%emt 0:00:48]} 68. Kd2 {[%emt 0:00:18]} Kg6 {[%emt 0:00:20]} 69. Kc2 {[%emt 0:00:24]} Kh5 {[%emt 0:00:25]} 70. Bc3 {[%emt 0:00:25]} Nc7 {[%emt 0:00:39]} 71. Bd2 {[%emt 0:00:55]} Nb5 {[%emt 0:00:16]} 72. Be3 {[%emt 0:00:32]} Kg6 {[%emt 0:00:17]} 73. Bc5 {[%emt 0:00:09]} Kh5 {[%emt 0:00:20]} 74. Bf2 {[%emt 0:00:05]} Kg6 {[%emt 0:00:45]} 75. Kd2 {[%emt 0:01:35]} Kh5 {[%emt 0:00:08]} 76. Bc5 {[%emt 0:00:27]} Nc7 {[%emt 0:00:43]} 77. Bd6 {[%emt 0:01:56]} Nd5 {[%emt 0:01:11]} 78. Be5 {[%emt 0:00:40]} Nb4 {[%emt 0:00:25]} 79. Kc3 {[%emt 0:00:57]} Nxa2+ {[%emt 0:00:16]} 80. Kxc4 {[%emt 0:00:01]} Nc1 {[%emt 0:00:28]} 81. Kd4 {[%emt 0:01:16]} a3 {[%emt 0:00:44]} 82. Kc4 {[%emt 0:00:33]} a2 {[%emt 0:00:09]} 83. Ba1 {[%emt 0:00:14]} Ne2 {[%emt 0:00:11]} 84. Be5 {[%emt 0:00:23]} Nxf4 {[%emt 0:00:10]} 85. Kb3 {[%emt 0:00:17]} Nxh3 {[%emt 0:00:10]} 86. Kxa2 {[%emt 0:00:08]} Kxg5 {[%emt 0:00:13]} 87. Kb2 {[%emt 0:00:10]} f4 {[%emt 0:00:18]} 88. Kc2 {[%emt 0:00:10]} f3 {[%emt 0:00:16]} 89. Kd2 {[%emt 0:00:15]} Kg4 {[%emt 0:00:23]} 90. Ke1 {[%emt 0:00:14]} Nf4 {[%emt 0:00:15]} 91. Kf1 {[%emt 0:00:15]} h3 {[%emt 0:00:35]} 92. Kg1 {[%emt 0:00:46]} Nd3 {[%emt 0:00:30]} 93. Bd6 {[%emt 0:01:08]} f2+ {[%emt 0:00:56]} 94. Kf1 {[%emt 0:00:05]} Kf3 {[%emt 0:00:20]} 95. Be5 {[%emt 0:00:29]} Ne1 {[%emt 0:01:04]} 96. Bd4 {[%emt 0:01:31]} h2 {[%emt 0:00:32]} 0-1